bitfinex-derivatives/quotes_ETHF0:USTF0_20241105
["timestamp","ask_amount","ask_price","bid_price","bid_amount"]
[1730848754445,0.41095,2433.5,2433.3,0.435]
[1730848754743,3.2078,2433.8,2433.3,0.435]
[1730848754949,0.4534,2433.4,2433.3,0.435]
[1730848755947,0.86436,2433.4,2433.3,0.435]
[1730848756548,0.86436,2433.4,2433.2,0.4314]
[1730848756843,0.41098,2433.3,2433.2,0.4314]
[1730848757051,0.4534,2433.4,2433.0,0.4471]
[1730848757348,0.41101,2433.1,2433.0,0.4471]
[1730848757542,0.411,2433.2,2433.0,0.4471]
[1730848758846,0.41101,2433.1,2433.0,0.4471]
[1730848759342,0.41104,2433.0,2432.8,3.2078]
[1730848759550,0.41104,2433.0,2432.8,3.6812]
[1730848761245,0.4652,2433.3,2432.9,4.1104]
[1730848761453,0.41102,2433.1,2432.8,4.09225]
[1730848762253,0.41101,2433.2,2432.9,0.41105]
[1730848764948,0.4652,2433.3,2432.8,3.6812]
[1730848765150,0.411,2433.2,2432.9,0.41105]
[1730848765551,0.41102,2433.1,2432.8,4.09225]
[1730848765750,0.4652,2433.3,2432.8,3.6812]
[1730848765952,0.411,2433.2,2432.9,0.41104]
[1730848766656,0.4652,2433.3,2432.8,4.09225]
[1730848766853,0.41104,2433.0,2432.8,3.6812]
[1730848767054,0.41104,2433.0,2432.8,4.09226]
[1730848767255,0.41104,2433.0,2432.8,3.6812]
[1730848767656,0.41103,2433.1,2432.8,4.09226]
[1730848768261,0.41103,2433.1,2432.8,0.88446]
[1730848770659,0.41104,2433.0,2432.8,0.4734]
[1730848772164,3.673,2433.3,2432.8,0.4734]
[1730848772359,0.41105,2432.9,2432.8,0.4734]
[1730848773352,3.61885,2432.9,2432.8,0.4734]
[1730848776866,0.41105,2432.9,2432.8,0.4734]
[1730848777672,3.61885,2432.9,2432.8,0.4734]
[1730848777864,3.61885,2432.9,2432.3,2.56495038]
[1730848777865,0.4111,2432.6,2432.3,0.41114]
[1730848778064,0.4427,2432.8,2432.4,0.9294]
[1730848778569,0.4111,2432.6,2432.4,0.77307666]
[1730848778965,0.9142,2432.8,2432.4,0.77307666]
[1730848779271,0.41112,2432.5,2432.4,0.77307666]
[1730848782369,3.2078,2432.6,2432.4,1.18419666]
[1730848783073,0.41108,2432.7,2432.4,1.18419666]
[1730848783369,0.9142,2432.8,2432.4,0.77307666]
[1730848783566,0.4111,2432.6,2432.4,0.77307666]
[1730848784569,0.41112,2432.5,2432.4,0.77307666]
[1730848787972,3.2078,2432.7,2432.4,0.77307666]
[1730848788172,0.41111,2432.6,2432.4,0.77307666]
[1730848788378,3.2078,2432.7,2432.4,1.18419666]
[1730848788379,3.61889,2432.7,2432.4,1.18419666]
[1730848789168,0.4111,2432.6,2432.4,0.77307666]
[1730848790670,0.41112,2432.5,2432.4,0.77307666]
[1730848792679,0.41111,2432.6,2432.4,0.77307666]
[1730848793075,3.61889,2432.7,2432.4,0.77307666]
[1730848793773,0.9142,2432.8,2432.4,0.77307666]
[1730848793774,3.2078,2432.8,2432.4,0.77307666]
[1730848793971,3.2078,2432.8,2432.5,0.4494]
[1730848794177,3.2078,2432.8,2432.5,0.86051]
[1730848794970,3.6814,2433.1,2432.5,0.4494]
[1730848795172,0.41106,2432.9,2432.5,0.86051]
[1730848796371,0.41106,2432.9,2432.6,0.4111]
[1730848796776,0.41104,2433.0,2432.6,0.4111]
[1730848796976,2.56495038,2433.0,2432.4,0.77307666]
[1730848797272,0.41108,2432.7,2432.4,0.77307666]
[1730848797575,0.4111,2432.6,2432.4,0.77307666]
[1730848797780,0.8686,2432.6,2432.4,0.77307666]
[1730848798078,0.4575,2432.6,2432.4,0.77307666]
[1730848798869,0.86861,2432.6,2432.4,0.30097666]
[1730848799079,0.4575,2432.6,2432.4,0.30097666]
[1730848799269,0.4575,2432.6,2432.5,0.4536]
[1730848799475,0.8686,2432.6,2432.5,0.4536]
[1730848799778,0.4575,2432.6,2432.5,0.4536]
[1730848800581,0.8686,2432.6,2432.5,0.4536]
[1730848801079,0.4575,2432.6,2432.5,0.4536]
[1730848801378,3.2078,2432.8,2432.5,4.97591]
[1730848801679,3.61887,2432.8,2432.5,1.34001]
[1730848802769,3.61887,2432.8,2432.5,0.9289]
[1730848802972,3.2078,2432.8,2432.5,0.9289]
[1730848803174,0.41109,2432.7,2432.5,0.4536]
[1730848803376,0.41109,2432.7,2432.4,0.71210666]
[1730848803377,3.2078,2432.8,2432.4,0.30097666]
[1730848803575,0.4111,2432.6,2432.4,0.30097666]
[1730848803885,0.41112,2432.5,2432.4,0.30097666]
[1730848804086,0.85502,2432.5,2432.4,0.30097666]
[1730848804279,41.65502,2432.5,2432.4,0.30097666]
[1730848805373,0.85502,2432.5,2432.4,0.30097666]
[1730848807087,3.6517,2432.5,2432.2,0.4446]
[1730848807385,4.06283,2432.5,2432.2,0.4446]
[1730848808282,4.06283,2432.5,2432.2,0.85576]
[1730848808687,4.06283,2432.5,2432.3,0.41115]
[1730848808688,3.6517,2432.5,2432.3,0.41115]
[1730848809182,0.4439,2432.5,2432.3,0.41115]
[1730848809485,3.2078,2432.9,2432.4,4.1112]
[1730848809680,0.41106,2432.8,2432.5,0.4686]
[1730848809876,0.41106,2432.8,2432.6,0.4545]
[1730848810080,0.4331,2432.7,2432.6,0.4545]
[1730848813482,0.4331,2432.7,2432.6,0.9143]
[1730848813987,0.4331,2432.7,2432.6,1.3254]
[1730848814196,41.2763,2433.1,2432.6,8.2325]
[1730848814387,41.2763,2433.1,2432.6,4.1221]
[1730848814388,0.906,2433.1,2432.6,4.1221]
[1730848814584,0.906,2433.1,2432.8,0.41105]
[1730848815296,0.4297,2433.1,2432.6,4.1221]
[1730848815499,6.85140155,2433.7,2433.3,0.41097]
[1730848815500,3.2078,2433.7,2433.3,0.41097]
[1730848815679,3.2078,2433.7,2433.4,1.31466]
[1730848815680,0.439,2433.7,2433.4,1.31466]
[1730848815990,0.439,2433.7,2433.5,0.41094]
[1730848816189,0.439,2433.7,2433.4,0.9037]
[1730848816378,0.439,2433.7,2433.4,1.31465]
[1730848816693,0.439,2433.7,2433.4,0.9037]
[1730848816897,0.439,2433.7,2433.5,0.41095]
[1730848817486,0.439,2433.7,2433.4,1.31465]
[1730848819193,0.439,2433.7,2433.4,0.9037]
[1730848819394,0.439,2433.7,2433.4,1.31466]
[1730848819790,0.439,2433.7,2433.5,0.41094]
[1730848819983,0.439,2433.7,2433.4,1.31465]
[1730848821686,0.84992,2433.7,2433.4,0.9037]
[1730848821994,40.8,2433.6,2433.4,0.9037]
[1730848823085,0.84992,2433.7,2433.4,0.9037]
[1730848823494,0.84992,2433.7,2433.2,3.2078]
[1730848823495,0.41094,2433.6,2433.2,3.2078]
[1730848823694,41.21096,2433.5,2433.2,3.2078]
[1730848823897,0.4592,2433.4,2433.2,0.41098]
[1730848824089,0.439,2433.7,2433.1,3.2078]
[1730848824291,0.439,2433.7,2433.4,0.41095]
[1730848824499,0.439,2433.7,2433.3,0.41097]
[1730848824696,40.8,2433.6,2433.4,0.41096]
[1730848825005,40.8,2433.6,2433.1,3.2078]
[1730848825204,40.8,2433.6,2433.4,0.41095]
[1730848825503,40.8,2433.6,2433.5,0.4699]
[1730848825697,0.439,2433.7,2433.5,0.4699]
[1730848826095,41.239,2433.7,2433.5,0.4699]
[1730848826302,41.64992,2433.7,2433.5,0.4699]
[1730848826500,0.41094,2433.6,2433.2,0.41099]
[1730848826698,0.41094,2433.6,2433.2,0.88089]
[1730848826996,41.64992,2433.7,2433.3,0.41097]
[1730848827197,41.64992,2433.7,2433.3,0.86527]
[1730848827396,0.41094,2433.6,2433.3,0.4543]
[1730848827594,3.2078,2433.5,2433.3,0.4543]
[1730848827793,0.41096,2433.4,2433.1,3.2078]
[1730848827997,0.4397,2433.3,2433.1,3.2078]
[1730848828193,1.73519,2433.3,2433.1,3.2078]
[1730848828594,1.3242,2433.3,2433.1,3.2078]
[1730848829596,0.8887,2433.3,2433.1,3.2078]
[1730848829794,3.6621,2433.5,2433.3,0.41098]
[1730848829992,3.6621,2433.5,2433.2,0.41099]
[1730848830404,3.6621,2433.5,2433.1,3.2078]
[1730848830698,0.41097,2433.4,2433.1,3.2078]
[1730848830904,3.6621,2433.5,2433.1,3.2078]
[1730848831104,4.07306,2433.5,2433.1,3.61881]
[1730848831704,4.07306,2433.5,2433.2,0.411]
[1730848832504,3.6621,2433.5,2433.2,0.411]
[1730848833195,3.6621,2433.5,2433.1,3.2078]
[1730848833399,0.41097,2433.4,2433.1,3.2078]
[1730848833997,3.6621,2433.5,2433.1,3.2078]
[1730848834500,0.41097,2433.4,2433.1,3.2078]
[1730848834706,4.07306,2433.5,2433.1,3.61881]
[1730848834900,4.07306,2433.5,2433.1,3.6188]
[1730848835196,3.6621,2433.5,2433.2,0.411]
[1730848835802,4.07306,2433.5,2433.1,3.61881]
[1730848836300,4.07306,2433.5,2433.1,3.2078]
[1730848836505,4.07306,2433.5,2433.1,3.61881]
[1730848837003,3.6621,2433.5,2433.2,0.411]
[1730848837207,4.07305,2433.5,2433.1,3.6188]
[1730848838202,4.07305,2433.5,2433.2,0.41099]
[1730848838203,3.6621,2433.5,2433.2,0.41099]
[1730848838402,3.6621,2433.5,2433.3,0.41098]
[1730848838706,4.07305,2433.5,2433.1,3.61881]
[1730848838910,4.07305,2433.5,2433.1,3.2078]
[1730848838911,3.6621,2433.5,2433.1,3.2078]
[1730848839200,0.41096,2433.4,2433.1,3.2078]
[1730848839398,3.6621,2433.5,2433.1,3.61881]
[1730848839593,4.07306,2433.5,2433.1,3.61881]
[1730848840099,0.41097,2433.4,2433.1,3.2078]
[1730848840294,0.41098,2433.3,2433.1,3.2078]
[1730848840500,3.6621,2433.5,2433.1,3.2078]
[1730848840707,0.4379,2433.2,2433.1,3.2078]
[1730848842315,0.4379,2433.2,2432.4,0.207]
[1730848842316,7.7553,2433.2,2432.4,0.207]
[1730848842609,0.41104,2433.0,2432.6,0.84639]
[1730848843006,0.88704,2433.0,2432.6,0.84639]
[1730848843404,0.41104,2433.0,2432.6,0.8464]
[1730848846112,0.41104,2433.0,2432.6,0.4353]
[1730848846414,0.41104,2433.0,2432.7,0.41108]
[1730848846711,0.84193,2433.1,2432.7,0.41108]
[1730848847302,0.4309,2433.1,2432.6,0.4353]
[1730848847510,0.41103,2433.0,2432.6,0.84639]
[1730848848407,0.41103,2433.0,2432.6,0.4353]
[1730848848606,0.41103,2433.0,2432.7,0.41108]
[1730848849506,0.41105,2432.9,2432.6,0.4353]
[1730848849706,0.41107,2432.8,2432.6,0.4353]
[1730848849914,0.4718,2432.8,2432.6,0.4353]
[1730848850107,3.40687038,2433.1,2432.7,0.41107]
[1730848850305,3.87867038,2433.1,2432.7,0.41107]
[1730848850509,3.87867038,2433.1,2432.8,0.41106]
[1730848850510,0.9027,2433.1,2432.8,0.41106]
[1730848851005,3.2078,2433.2,2432.9,0.4608]
[1730848851204,0.4718,2433.3,2432.9,0.4608]
[1730848851616,0.4718,2433.3,2433.0,0.41103]
[1730848851917,0.4718,2433.3,2433.1,0.4658]
[1730848852325,0.88278,2433.3,2433.1,0.4658]
[1730848852611,0.411,2433.2,2433.1,0.4658]
[1730848852811,0.41103,2433.0,2432.9,0.4608]
[1730848853711,0.41102,2433.1,2432.9,0.4608]
[1730848854006,0.41103,2433.0,2432.9,0.4608]
[1730848854215,3.2078,2433.2,2432.9,0.4608]
[1730848854508,0.41103,2433.1,2432.9,0.4608]
[1730848854711,0.41103,2433.1,2432.7,0.41108]
[1730848854913,0.4508,2433.0,2432.7,0.84098]
[1730848857917,0.411,2433.2,2432.9,0.41105]
[1730848858417,1.07551178,2433.3,2432.8,0.41105]
[1730848858617,0.41106,2432.9,2432.7,0.4299]
[1730848858818,2.56495038,2433.1,2432.7,0.4299]
[1730848859117,4.1169,2432.8,2432.1,0.207]
[1730848859321,4.1169,2432.8,2432.2,0.4406]
[1730848859322,3.2078,2432.5,2432.2,0.4406]
[1730848859518,0.41115,2432.3,2432.2,0.4406]
[1730848859718,1.3389,2432.4,2432.2,0.4406]
[1730848859922,0.41115,2432.3,2432.0,0.4639]
[1730848860119,0.41115,2432.3,2432.0,0.9045]
[1730848860418,3.90385038,2432.4,2432.0,0.9045]
[1730848860419,1.3389,2432.4,2432.0,0.9045]
[1730848860917,1.3389,2432.4,2432.0,1.31569]
[1730848861124,0.9091,2432.4,2432.0,1.31569]
[1730848861723,1.32023,2432.4,2432.0,0.9045]
[1730848862717,0.4664,2432.4,2432.3,0.41115]
[1730848862920,0.4664,2432.4,2432.0,0.9045]
[1730848863221,0.4664,2432.4,2432.2,0.41116]
[1730848863930,0.4648,2432.6,2432.0,0.9045]
[1730848864127,0.9415,2432.6,2432.4,0.41113]
[1730848864426,0.9415,2432.6,2432.5,0.925]
[1730848865027,1.3526,2432.6,2432.5,0.4503]
[1730848865331,0.9415,2432.6,2432.5,0.4503]
[1730848866415,1.3526,2432.6,2432.5,0.4503]
[1730848866620,0.4767,2432.6,2432.5,0.86142]
[1730848866826,3.2078,2432.8,2432.5,0.86142]
[1730848867924,0.41108,2432.7,2432.5,0.4503]
[1730848868127,3.2078,2432.8,2432.5,0.4503]
[1730848868327,3.61887,2432.8,2432.5,0.4503]
[1730848869930,0.4111,2432.7,2432.5,0.4503]
[1730848870130,0.4111,2432.6,2432.5,0.4503]
[1730848870432,3.2078,2432.8,2432.2,3.2078]
[1730848870433,0.41113,2432.5,2432.2,3.2078]
[1730848870633,0.4631,2432.4,2432.3,0.4743]
[1730848871222,3.2078,2432.8,2432.3,0.4743]
[1730848871420,1.32919,2432.7,2432.3,0.88544]
[1730848871823,0.9181,2432.7,2432.3,0.4743]
[1730848872028,1.32919,2432.7,2432.3,0.88544]
[1730848872718,0.41117,2432.2,2431.8,0.41122]
[1730848872918,0.41117,2432.2,2431.7,0.207]
[1730848872919,0.41117,2432.2,2431.9,1.33091]
[1730848873126,0.41117,2432.2,2431.9,0.9197]
[1730848873430,0.41115,2432.3,2431.9,1.33091]
[1730848873836,1.31308,2432.2,2431.9,0.9197]
[1730848874530,1.31307,2432.2,2431.9,0.9197]
[1730848874928,0.9019,2432.2,2431.9,0.9197]
[1730848875231,0.9019,2432.2,2431.9,1.33092]
[1730848875924,0.9019,2432.2,2432.0,0.41119]
[1730848876232,0.9019,2432.2,2431.9,1.3309]
[1730848876631,0.9019,2432.2,2432.0,0.4112]
[1730848876827,0.9019,2432.2,2431.9,0.9197]
[1730848877034,0.9019,2432.2,2431.9,1.33091]
[1730848878333,0.9019,2432.2,2431.9,0.4512]
[1730848878334,3.619,2432.1,2431.9,0.4512]
[1730848878531,7.3198,2432.1,2431.6,0.4324]
[1730848878734,0.41125,2431.7,2431.6,0.4336]
[1730848878937,0.41127,2431.6,2431.5,3.2078]
[1730848879126,1.77067,2431.6,2431.5,3.2078]
[1730848879329,0.9084,2431.6,2431.5,3.2078]
[1730848879931,3.2078,2432.1,2431.1,6.63875038]
[1730848880138,0.9229,2432.0,2431.1,6.63875038]
[1730848880336,3.61905,2431.8,2431.1,4.0738]
[1730848880542,3.2078,2431.8,2431.3,0.41131]
[1730848880834,3.2078,2431.8,2431.1,4.0738]
[1730848881030,3.2078,2431.8,2431.4,0.41129]
[1730848881240,3.2078,2431.8,2431.5,0.85018]
[1730848881540,3.2078,2431.8,2431.6,0.4676]
[1730848881932,3.2078,2431.8,2431.6,0.87886]
[1730848882338,3.2078,2431.8,2431.7,0.41125]
[1730848882537,3.2078,2431.8,2431.6,0.87886]
[1730848883039,3.2078,2431.8,2431.6,0.4676]
[1730848883340,3.2078,2431.8,2431.6,0.87886]
[1730848883642,0.9229,2432.0,2431.6,0.87886]
[1730848883842,0.9229,2432.0,2431.7,0.41125]
[1730848884444,0.9229,2432.0,2431.8,0.41123]
[1730848884850,0.9229,2432.0,2431.9,0.4298]
[1730848885240,5.0349,2432.0,2431.9,0.4298]
[1730848886247,0.4557,2432.0,2431.9,0.4298]
[1730848887248,0.4557,2432.0,2431.9,0.84102]
[1730848887757,4.97891,2432.0,2431.6,0.87886]
[1730848887956,0.86691,2432.0,2431.6,1.35326]
[1730848888254,0.4557,2432.0,2431.7,0.41124]
[1730848888951,0.4557,2432.0,2431.6,0.942]
[1730848889147,0.4557,2432.0,2431.9,0.41122]
[1730848889340,4.5677,2432.0,2431.6,0.942]
[1730848889550,0.4557,2432.0,2431.6,1.35326]
[1730848889743,0.86691,2432.0,2431.6,1.35326]
[1730848890054,0.41124,2431.8,2431.6,0.942]
[1730848890351,0.4755,2431.7,2431.6,0.942]
[1730848894052,0.4755,2431.7,2431.6,0.4676]
[1730848894659,2.56495038,2431.6,2431.3,4.05631]
[1730848894863,5.77275038,2431.9,2431.3,4.1046]
[1730848895160,5.77275038,2431.9,2431.5,0.41128]
[1730848895161,0.4398,2431.8,2431.5,0.41128]
[1730848895356,0.4398,2431.8,2431.3,4.1046]
[1730848895660,0.4398,2431.8,2431.6,0.41126]
[1730848895857,3.2078,2431.9,2431.7,0.85344]
[1730848896060,3.2078,2431.9,2431.8,0.4621]
[1730848896254,0.87,2432.0,2431.8,0.4621]
[1730848897654,0.87,2432.0,2431.8,0.87332]
[1730848897858,0.4398,2432.0,2431.8,0.87332]
[1730848899557,0.4398,2432.0,2431.9,0.41122]
[1730848899759,44.0078,2432.2,2431.9,0.41121]
[1730848900062,44.0078,2432.2,2432.0,0.4112]
[1730848900258,0.41119,2432.1,2431.8,0.87333]
[1730848900967,3.2078,2432.2,2431.9,0.41121]
[1730848902956,3.2078,2432.2,2432.0,0.41119]
[1730848903353,3.2078,2432.2,2432.1,0.467]
[1730848904859,3.2078,2432.9,2432.4,0.41113]
[1730848905061,0.4547,2432.8,2432.5,1.30431]
[1730848905360,0.8939,2432.8,2432.5,1.30431]
[1730848906161,0.8939,2432.8,2432.5,0.8932]
[1730848906467,0.8939,2432.8,2432.5,1.30431]
[1730848907470,0.8939,2432.8,2432.6,0.4111]
[1730848908367,0.8939,2432.8,2432.5,0.8932]
[1730848908561,1.30497,2432.8,2432.5,0.8932]
[1730848908761,1.30497,2432.8,2432.2,3.2078]
[1730848908762,0.8939,2432.8,2432.2,3.2078]
[1730848908963,0.41109,2432.7,2432.3,0.4441]
[1730848909359,0.4468,2432.7,2432.3,0.4441]
[1730848909563,2.56495038,2432.6,2432.3,0.4441]
[1730848909767,0.41112,2432.5,2432.2,3.2078]
[1730848909971,0.41112,2432.5,2432.1,1.29988]
[1730848910160,0.4338,2432.4,2432.1,1.29988]
[1730848910471,0.4673,2432.3,2432.1,0.4441]
[1730848910661,5.77275038,2432.2,2431.6,0.5284]
[1730848910865,0.4112,2432.0,2431.6,1.30086]
[1730848911166,40.8,2431.9,2431.6,1.30086]
[1730848911559,0.4112,2432.1,2431.6,1.30086]
[1730848912172,40.8,2432.0,2431.8,0.41123]
[1730848912468,40.8,2432.0,2431.7,0.41124]
[1730848915165,40.8,2432.0,2431.6,0.8896]
[1730848915361,40.8,2432.0,2431.9,0.41122]
[1730848915666,3.2078,2432.2,2431.9,0.41122]
[1730848915866,3.61897,2432.2,2431.9,0.41122]
[1730848916169,0.41117,2432.2,2431.9,0.41122]
[1730848916380,40.8,2432.1,2432.0,0.4112]
[1730848916570,4.08625,2432.3,2432.0,0.4112]
[1730848916769,4.08625,2432.3,2432.1,0.4654]
[1730848917072,44.88625,2432.3,2432.1,0.4654]
[1730848917278,44.4751,2432.3,2432.1,0.4654]
[1730848918074,44.88626,2432.3,2432.1,0.4654]
[1730848918674,44.4751,2432.3,2432.1,0.4654]
[1730848919069,0.41117,2432.2,2432.1,0.4654]
[1730848919475,44.937,2432.3,2432.1,0.4654]
[1730848919678,45.34816,2432.3,2432.1,0.4654]
[1730848920976,0.41121,2432.0,2431.7,3.2078]
[1730848921177,6.67615038,2432.2,2431.8,0.41123]
[1730848921178,0.9511,2431.9,2431.8,0.41123]
[1730848921973,0.9511,2431.9,2431.7,0.41124]
[1730848922374,44.4697,2432.3,2432.0,0.4112]
[1730848922571,44.41895,2432.3,2432.1,0.4409]
[1730848923173,44.0078,2432.3,2432.1,0.4409]
[1730848923584,44.41895,2432.3,2432.1,0.4409]
[1730848923979,44.0078,2432.3,2432.1,0.85208]
[1730848924783,44.41896,2432.3,2432.1,0.4409]
[1730848924982,44.41896,2432.3,2431.8,0.41123]
[1730848924983,0.41117,2432.2,2431.8,0.41123]
[1730848925170,44.41896,2432.3,2431.9,0.4743]
[1730848925472,44.41896,2432.3,2431.9,0.88551]
[1730848925669,44.0078,2432.3,2432.0,0.4112]
[1730848925873,44.41896,2432.3,2432.0,0.4714]
[1730848926084,44.41896,2432.3,2432.0,0.8826]
[1730848927272,44.0078,2432.3,2432.0,0.4714]
[1730848927469,44.0078,2432.3,2432.1,0.41118]
[1730848927674,44.0078,2432.3,2432.0,0.88259]
[1730848928382,44.0078,2432.3,2432.0,0.4714]
[1730848928583,44.0078,2432.3,2432.1,0.41118]
[1730848928977,44.41896,2432.3,2432.0,0.4714]
[1730848929171,44.41896,2432.3,2432.0,0.8826]
[1730848929574,44.0078,2432.3,2432.1,0.41118]
[1730848930383,0.9342,2432.4,2432.2,0.41117]
[1730848930588,0.9342,2432.4,2432.3,0.4323]
[1730848931486,1.34533,2432.4,2432.3,0.4323]
[1730848931888,1.34533,2432.4,2432.0,0.88259]
[1730848932088,0.9342,2432.4,2432.1,0.41118]
[1730848932283,0.9342,2432.4,2432.2,0.4405]
[1730848932593,3.61886,2432.9,2432.5,0.41112]
[1730848932785,0.9166,2432.8,2432.6,0.4405]
[1730848933283,0.9166,2432.8,2432.4,0.4369]
[1730848933487,1.32768,2432.8,2432.4,0.8774]
[1730848933684,1.32768,2432.8,2432.4,1.28853]
[1730848934385,0.9166,2432.8,2432.5,0.41111]
[1730848934976,0.9166,2432.8,2432.4,0.8774]
[1730848934977,0.9166,2432.8,2432.6,0.41109]
[1730848935178,0.4447,2432.8,2432.7,0.41108]
[1730848935887,3.2078,2432.9,2432.8,0.41106]
[1730848936091,3.2078,2432.9,2432.5,0.4362]
[1730848936392,3.2078,2432.9,2432.8,0.8742]
[1730848936881,3.2078,2432.9,2432.3,4.3758]
[1730848936882,3.2078,2432.9,2432.6,0.41109]
[1730848937086,0.4334,2432.8,2432.4,0.8742]
[1730848937679,0.4334,2432.8,2432.6,0.4111]
[1730848940483,0.4334,2432.8,2432.4,0.8742]
[1730848940884,0.84447,2432.8,2432.4,1.28533]
[1730848941687,3.2078,2433.0,2432.4,0.8742]
[1730848941891,3.2078,2433.0,2432.7,0.41108]
[1730848942092,0.4733,2432.9,2432.7,0.41108]
[1730848942285,40.8,2432.8,2432.7,0.41108]
[1730848942787,40.8,2432.8,2432.6,0.41109]
[1730848942985,41.2489,2432.8,2432.5,0.86291]
[1730848943180,41.2489,2432.8,2432.5,0.41111]
[1730848943883,41.2489,2432.8,2432.6,0.41109]
[1730848944284,41.2489,2432.8,2432.4,0.8742]
[1730848944491,0.4489,2432.8,2432.6,0.41109]
[1730848945883,0.4489,2432.8,2432.7,0.41108]
[1730848946394,0.4489,2432.8,2432.6,0.41109]
[1730848947694,0.4489,2432.8,2432.7,0.41108]
[1730848947896,3.2078,2433.2,2432.5,4.1112]
[1730848948090,3.2078,2433.2,2432.7,1.02771]
[1730848948291,3.2078,2433.2,2433.0,0.41102]
[1730848949586,3.2078,2433.2,2432.8,0.8708]
[1730848949790,3.2078,2433.2,2433.0,0.41102]
[1730848950296,41.6715,2433.3,2433.0,0.41102]
[1730848950496,0.8715,2433.3,2433.0,0.41102]
[1730848951887,1.2825,2433.3,2432.9,0.41104]
[1730848952092,3.43645038,2433.3,2432.8,1.28186]
[1730848952398,3.6188,2433.2,2432.8,1.28186]
[1730848953899,3.2078,2433.2,2432.9,0.41103]
[1730848954093,3.6188,2433.2,2432.8,1.28185]
[1730848954490,3.6188,2433.2,2432.9,0.41105]
[1730848954997,3.6188,2433.2,2432.8,1.28186]
[1730848955398,3.6188,2433.2,2432.9,0.41105]
[1730848956098,0.41104,2433.0,2432.7,3.2078]
[1730848956297,1.27446,2432.9,2432.5,0.8443]
[1730848956495,4.48226,2432.9,2432.5,0.8443]
[1730848956808,0.41107,2432.8,2432.5,0.4332]
[1730848957304,4.48226,2432.9,2432.5,0.84431]
[1730848957892,4.0712,2432.9,2432.5,0.4332]
[1730848958097,4.0712,2432.9,2432.3,3.6395]
[1730848958305,4.0712,2432.9,2432.3,0.4317]
[1730848958496,0.41109,2432.7,2432.3,0.4317]
[1730848960500,0.4111,2432.6,2432.3,0.4317]
[1730848960702,0.4577,2432.5,2432.3,0.4317]
[1730848960897,0.923,2432.5,2432.3,0.4317]
[1730848962004,0.923,2432.5,2432.2,0.4593]
[1730848962200,0.41113,2432.4,2432.2,0.4593]
[1730848963005,1.33413,2432.5,2432.2,0.4593]
[1730848963309,0.923,2432.5,2432.2,0.4593]
[1730848963609,2.56495038,2432.3,2431.9,3.2078]
[1730848963803,0.41117,2432.2,2431.9,3.6404]
[1730848964109,0.4679,2432.1,2431.9,3.6404]
[1730848964298,0.9286,2432.1,2431.9,3.6404]
[1730848965904,0.9286,2432.1,2432.0,0.4112]
[1730848966205,3.61894,2432.4,2432.0,4.52319]
[1730848966399,3.61894,2432.4,2432.0,0.41119]
[1730848967099,0.41114,2432.4,2432.0,0.41119]
[1730848968197,3.61894,2432.4,2432.0,0.41119]
[1730848969800,3.61894,2432.4,2432.0,0.4112]
[1730848971410,0.41114,2432.4,2432.0,0.4112]
[1730848971609,0.41114,2432.4,2431.9,3.6404]
[1730848971809,0.41114,2432.4,2432.1,0.41118]
[1730848972805,0.41114,2432.4,2432.0,0.41119]
[1730848973005,0.41115,2432.3,2432.0,0.4112]
[1730848973204,0.41115,2432.4,2432.0,0.4112]
[1730848974812,44.9254,2432.5,2432.2,0.41116]
[1730848975011,44.9254,2432.5,2432.3,0.9116]
[1730848975216,45.33652,2432.5,2432.3,0.9116]
[1730848975420,44.9254,2432.5,2432.3,0.9116]
[1730848975714,45.33652,2432.5,2432.3,0.9116]
[1730848976112,44.9254,2432.5,2432.3,0.9116]
[1730848976410,0.41113,2432.4,2432.3,0.9116]
[1730848976711,0.41113,2432.4,2432.3,0.4744]
[1730848978516,4.1254,2432.5,2432.3,0.4744]
[1730848978709,4.53652,2432.5,2432.3,0.4744]
[1730848981714,4.1254,2432.5,2432.3,0.4744]
[1730848982326,4.53652,2432.5,2432.3,0.4744]
[1730848983313,1.59594999,2432.4,2432.3,0.4744]
[1730848983516,1.18481999,2432.4,2432.3,0.4744]
[1730848986615,4.1254,2432.5,2432.3,0.88554]
[1730848986925,0.9176,2432.5,2432.4,0.41113]
[1730848987124,0.9176,2432.5,2432.3,0.4744]
[1730848987826,0.9176,2432.5,2432.3,0.88555]
[1730848989721,0.9176,2432.5,2432.4,0.41113]
[1730848990123,0.9176,2432.5,2432.3,0.4744]
[1730848990924,0.9176,2432.5,2432.3,0.88555]
[1730848992920,1.32872,2432.5,2432.3,0.4744]
[1730848993120,2.10241999,2432.5,2432.3,0.4744]
[1730848993420,2.51354999,2432.5,2432.3,0.4744]
[1730848996321,0.9176,2432.5,2432.3,0.88554]
[1730848996515,0.9176,2432.5,2432.4,0.4506]
[1730849000925,1.32872,2432.5,2432.3,0.4744]
[1730849001431,0.41113,2432.4,2432.3,0.4744]
[1730849001814,1.32872,2432.5,2432.3,0.4744]
[1730849002429,2.10241999,2432.5,2432.1,0.4543]
[1730849002624,0.41114,2432.4,2432.1,0.4543]
[1730849003127,2.51354999,2432.5,2432.1,0.86548]
[1730849003317,0.41113,2432.4,2432.1,0.86548]
[1730849003514,0.41113,2432.4,2432.1,0.4543]
[1730849003728,2.51353999,2432.5,2432.1,0.86547]
[1730849004422,2.51353999,2432.5,2432.1,0.4543]
[1730849004630,2.51353999,2432.5,2432.2,0.41116]